Workbook

Sheet 曲げ耐力
E2: 数式解
B3: 断面高さh(cm) | C3: 30 | E3: 軸力N(kNm) | F3: N/(bhσ0) | G3: r | H3: X(cm) | I3: M(kNm) | J3: k(=X/h) | K3: f(k) | L3: Nc0(kN) | M3: yG0(cm) | N3: r1 | O3: Nc1(kN) | P3: yG1(cm)
B4: 断面幅b(cm) | C4: 100 | E4: 0 | F4: =E4/($C$3*$C$4/10000*($C$5*1000)*$C$6) -> 0 | G4: =IF(F4<(1/3),3/2*(1-SQRT(1-8/3*F4)),IF(F4<(3*$C$7-1)/6/$C$7,1/3/(1-2*F4),"-")) -> 0 | H4: =IF(F4<(3*$C$7-1)/6/$C$7,$C$3/2,IF(F4<(3*$C$7-1)/3/$C$7,3*$C$7*E4/($C$4/100)/($C$6*$C$5*1000)/(3*$C$7-1)*100,J4*$C$3)) -> 15 | I4: =IF(F4<(1/3),$C$4/100*($C$3/100)^2*$C$6*$C$5*1000/48*G4*(8-3*G4),IF(F4<(3*$C$7-1)/6/$C$7,$C$4/100*($C$3/100)^2*$C$6*$C$5*1000/48*(6*G4^2-1)/G4^2,IF(F4<(3*$C$7-1)/3/$C$7,$C$4/100*$C$6*$C$5*1000*(6*$C$7^2-1)/12/$C$7^2*(H4/100)^2+E4*($C$3/2/100-H4/100),L4*M4/100-O4*P4/100-E4*(H4/100-$C$3/2/100)))) -> 0 | J4: =IF(F4<(3*$C$7-1)/3/$C$7,"-",0) -> - | K4: =IF(F4>(3*$C$7-1)/3/$C$7,($C$7-1)^3*J4^3+3*($C$7^2*(2-$C$7)-$C$7*F4)*J4^2+3*$C$7^2*($C$7-1)*J4-$C$7^3,"-") -> - | L4: =IF(F4>(3*$C$7-1)/3/$C$7,$C$4/100*H4/100*$C$6*$C$5*1000/3/$C$7*(3*$C$7-1),"-") -> - | M4: =IF(F4>(3*$C$7-1)/3/$C$7,(6*$C$7^2-1)/4/$C$7/(3*$C$7-1)*H4,"-") -> - | N4: =IF(F4>(3*$C$7-1)/3/$C$7,$C$7*(H4-$C$3)/H4,"-") -> - | O4: =IF(F4>(3*$C$7-1)/3/$C$7,$C$4/100*(H4/100-$C$3/100)*$C$6*$C$5*1000/3*N4*(3-N4),"-") -> - | P4: =IF(F4>(3*$C$7-1)/3/$C$7,(8-3*N4)/4/(3-N4)*(H4-$C$3),"-") -> -
B5: コンクリート強度fc(N/mm2) | C5: =18/1.3 -> 13.84615385 | E5: =E4+50 -> 50 | F5: =E5/($C$3*$C$4/10000*($C$5*1000)*$C$6) -> 0.01416122004 | G5: =IF(F5<(1/3),3/2*(1-SQRT(1-8/3*F5)),IF(F5<(3*$C$7-1)/6/$C$7,1/3/(1-2*F5),"-")) -> 0.02859499806 | H5: =IF(F5<(3*$C$7-1)/6/$C$7,$C$3/2,IF(F5<(3*$C$7-1)/3/$C$7,3*$C$7*E5/($C$4/100)/($C$6*$C$5*1000)/(3*$C$7-1)*100,J5*$C$3)) -> 15 | I5: =IF(F5<(1/3),$C$4/100*($C$3/100)^2*$C$6*$C$5*1000/48*G5*(8-3*G5),IF(F5<(3*$C$7-1)/6/$C$7,$C$4/100*($C$3/100)^2*$C$6*$C$5*1000/48*(6*G5^2-1)/G5^2,IF(F5<(3*$C$7-1)/3/$C$7,$C$4/100*$C$6*$C$5*1000*(6*$C$7^2-1)/12/$C$7^2*(H5/100)^2+E5*($C$3/2/100-H5/100),L5*M5/100-O5*P5/100-E5*(H5/100-$C$3/2/100)))) -> 4.993985379 | J5: =IF(F5<(3*$C$7-1)/3/$C$7,"-",0) -> - | K5: =IF(F5>(3*$C$7-1)/3/$C$7,($C$7-1)^3*J5^3+3*($C$7^2*(2-$C$7)-$C$7*F5)*J5^2+3*$C$7^2*($C$7-1)*J5-$C$7^3,"-") -> - | L5: =IF(F5>(3*$C$7-1)/3/$C$7,$C$4/100*H5/100*$C$6*$C$5*1000/3/$C$7*(3*$C$7-1),"-") -> - | M5: =IF(F5>(3*$C$7-1)/3/$C$7,(6*$C$7^2-1)/4/$C$7/(3*$C$7-1)*H5,"-") -> - | N5: =IF(F5>(3*$C$7-1)/3/$C$7,$C$7*(H5-$C$3)/H5,"-") -> - | O5: =IF(F5>(3*$C$7-1)/3/$C$7,$C$4/100*(H5/100-$C$3/100)*$C$6*$C$5*1000/3*N5*(3-N5),"-") -> - | P5: =IF(F5>(3*$C$7-1)/3/$C$7,(8-3*N5)/4/(3-N5)*(H5-$C$3),"-") -> -
B6: 強度に係る係数k1 | C6: 0.85 | E6: =E5+50 -> 100 | F6: =E6/($C$3*$C$4/10000*($C$5*1000)*$C$6) -> 0.02832244009 | G6: 0.05775683067 | H6: 15 | I6: 9.975462246 | J6: - | K6: - | L6: - | M6: - | N6: - | O6: - | P6: -
B7: εzに対するεcuの比ru | C7: =0.0035/0.002 -> 1.75 | E7: 150 | F7: 0.04248366013 | G7: 0.08752060574 | H7: 15 | I7: 14.94365586 | J7: - | K7: - | L7: - | M7: - | N7: - | O7: - | P7: -
E8: 200 | F8: 0.05664488017 | G8: 0.1179252122 | H8: 15 | I8: 19.89770806 | J8: - | K8: - | L8: - | M8: - | N8: - | O8: - | P8: -
B9: Nmax(kNm) | C9: =0.85*C5*1000*C3*C4/10000 -> 3530.769231 | E9: 250 | F9: 0.07080610022 | G9: 0.1490139162 | H9: 15 | I9: 24.83666406 | J9: - | K9: - | L9: - | M9: - | N9: - | O9: - | P9: -
E10: 300 | F10: 0.08496732026 | G10: 0.1808350829 | H10: 15 | I10: 29.75945658 | J10: - | K10: - | L10: - | M10: - | N10: - | O10: - | P10: -
E11: 350 | F11: 0.09912854031 | G11: 0.2134430607 | H11: 15 | I11: 34.66488631 | J11: - | K11: - | L11: - | M11: - | N11: - | O11: - | P11: -
E12: 400 | F12: 0.1132897603 | G12: 0.2468992706 | H12: 15 | I12: 39.55159783 | J12: - | K12: - | L12: - | M12: - | N12: - | O12: - | P12: -
E13: 450 | F13: 0.1274509804 | G13: 0.2812735673 | H13: 15 | I13: 44.41804964 | J13: - | K13: - | L13: - | M13: - | N13: - | O13: - | P13: -
E14: 500 | F14: 0.1416122004 | G14: 0.3166459543 | H14: 15 | I14: 49.2624763 | J14: - | K14: - | L14: - | M14: - | N14: - | O14: - | P14: -
E15: 550 | F15: 0.1557734205 | G15: 0.3531087771 | H15: 15 | I15: 54.08283997 | J15: - | K15: - | L15: - | M15: - | N15: - | O15: - | P15: -
E16: 600 | F16: 0.1699346405 | G16: 0.3907695655 | H16: 15 | I16: 58.87676776 | J16: - | K16: - | L16: - | M16: - | N16: - | O16: - | P16: -
E17: 650 | F17: 0.1840958606 | G17: 0.4297547774 | H17: 15 | I17: 63.6414691 | J17: - | K17: - | L17: - | M17: - | N17: - | O17: - | P17: -
E18: 700 | F18: 0.1982570806 | G18: 0.4702148203 | H18: 15 | I18: 68.37362488 | J18: - | K18: - | L18: - | M18: - | N18: - | O18: - | P18: -
E19: 750 | F19: 0.2124183007 | G19: 0.5123309279 | H19: 15 | I19: 73.06923577 | J19: - | K19: - | L19: - | M19: - | N19: - | O19: - | P19: -
E20: 800 | F20: 0.2265795207 | G20: 0.5563248039 | H20: 15 | I20: 77.72340938 | J20: - | K20: - | L20: - | M20: - | N20: - | O20: - | P20: -
E21: 850 | F21: 0.2407407407 | G21: 0.6024725321 | H21: 15 | I21: 82.33005326 | J21: - | K21: - | L21: - | M21: - | N21: - | O21: - | P21: -
E22: 900 | F22: 0.2549019608 | G22: 0.6511253124 | H22: 15 | I22: 86.88141739 | J22: - | K22: - | L22: - | M22: - | N22: - | O22: - | P22: -
E23: 950 | F23: 0.2690631808 | G23: 0.7027416259 | H23: 15 | I23: 91.36738431 | J23: - | K23: - | L23: - | M23: - | N23: - | O23: - | P23: -
E24: 1000 | F24: 0.2832244009 | G24: 0.7579396286 | H24: 15 | I24: 95.774313 | J24: - | K24: - | L24: - | M24: - | N24: - | O24: - | P24: -
E25: 1050 | F25: 0.2973856209 | G25: 0.8175878998 | H25: 15 | I25: 100.0830362 | J25: - | K25: - | L25: - | M25: - | N25: - | O25: - | P25: -
E26: 1100 | F26: 0.311546841 | G26: 0.8829757264 | H26: 15 | I26: 104.265103 | J26: - | K26: - | L26: - | M26: - | N26: - | O26: - | P26: -
E27: 1150 | F27: 0.325708061 | G27: 0.9561694805 | H27: 15 | I27: 108.2749139 | J27: - | K27: - | L27: - | M27: - | N27: - | O27: - | P27: -
E28: 1200 | F28: 0.339869281 | G28: 1.040816327 | H28: 15 | I28: 112.033371 | J28: - | K28: - | L28: - | M28: - | N28: - | O28: - | P28: -
E29: 1250 | F29: 0.3540305011 | G29: 1.141791045 | H29: 15 | I29: 115.4769985 | J29: - | K29: - | L29: - | M29: - | N29: - | O29: - | P29: -
E30: 1300 | F30: 0.3681917211 | G30: 1.26446281 | H30: 15 | I30: 118.6019985 | J30: - | K30: - | L30: - | M30: - | N30: - | O30: - | P30: -
E31: 1350 | F31: 0.3823529412 | G31: 1.416666667 | H31: 15 | I31: 121.408371 | J31: - | K31: - | L31: - | M31: - | N31: - | O31: - | P31: -
E32: 1400 | F32: 0.3965141612 | G32: 1.610526316 | H32: 15 | I32: 123.8961161 | J32: - | K32: - | L32: - | M32: - | N32: - | O32: - | P32: -
E33: 1450 | F33: 0.4106753813 | G33: - | H33: 15.21914648 | I33: 125.7055262 | J33: - | K33: - | L33: - | M33: - | N33: - | O33: - | P33: -
E34: 1500 | F34: 0.4248366013 | G34: - | H34: 15.74394464 | I34: 126.7657236 | J34: - | K34: - | L34: - | M34: - | N34: - | O34: - | P34: -
E35: 1550 | F35: 0.4389978214 | G35: - | H35: 16.26874279 | I35: 127.6076226 | J35: - | K35: - | L35: - | M35: - | N35: - | O35: - | P35: -
E36: 1600 | F36: 0.4531590414 | G36: - | H36: 16.79354095 | I36: 128.2312233 | J36: - | K36: - | L36: - | M36: - | N36: - | O36: - | P36: -
E37: 1650 | F37: 0.4673202614 | G37: - | H37: 17.3183391 | I37: 128.6365255 | J37: - | K37: - | L37: - | M37: - | N37: - | O37: - | P37: -
E38: 1700 | F38: 0.4814814815 | G38: - | H38: 17.84313725 | I38: 128.8235294 | J38: - | K38: - | L38: - | M38: - | N38: - | O38: - | P38: -
E39: 1750 | F39: 0.4956427015 | G39: - | H39: 18.36793541 | I39: 128.7922349 | J39: - | K39: - | L39: - | M39: - | N39: - | O39: - | P39: -
E40: 1800 | F40: 0.5098039216 | G40: - | H40: 18.89273356 | I40: 128.542642 | J40: - | K40: - | L40: - | M40: - | N40: - | O40: - | P40: -
E41: 1850 | F41: 0.5239651416 | G41: - | H41: 19.41753172 | I41: 128.0747507 | J41: - | K41: - | L41: - | M41: - | N41: - | O41: - | P41: -
E42: 1900 | F42: 0.5381263617 | G42: - | H42: 19.94232987 | I42: 127.388561 | J42: - | K42: - | L42: - | M42: - | N42: - | O42: - | P42: -
E43: 1950 | F43: 0.5522875817 | G43: - | H43: 20.46712803 | I43: 126.4840729 | J43: - | K43: - | L43: - | M43: - | N43: - | O43: - | P43: -
E44: 2000 | F44: 0.5664488017 | G44: - | H44: 20.99192618 | I44: 125.3612864 | J44: - | K44: - | L44: - | M44: - | N44: - | O44: - | P44: -
E45: 2050 | F45: 0.5806100218 | G45: - | H45: 21.51672434 | I45: 124.0202015 | J45: - | K45: - | L45: - | M45: - | N45: - | O45: - | P45: -
E46: 2100 | F46: 0.5947712418 | G46: - | H46: 22.04152249 | I46: 122.4608182 | J46: - | K46: - | L46: - | M46: - | N46: - | O46: - | P46: -
E47: 2150 | F47: 0.6089324619 | G47: - | H47: 22.56632065 | I47: 120.6831366 | J47: - | K47: - | L47: - | M47: - | N47: - | O47: - | P47: -
E48: 2200 | F48: 0.6230936819 | G48: - | H48: 23.0911188 | I48: 118.6871565 | J48: - | K48: - | L48: - | M48: - | N48: - | O48: - | P48: -
E49: 2250 | F49: 0.637254902 | G49: - | H49: 23.61591696 | I49: 116.4728781 | J49: - | K49: - | L49: - | M49: - | N49: - | O49: - | P49: -
E50: 2300 | F50: 0.651416122 | G50: - | H50: 24.14071511 | I50: 114.0403012 | J50: - | K50: - | L50: - | M50: - | N50: - | O50: - | P50: -
E51: 2350 | F51: 0.665577342 | G51: - | H51: 24.66551326 | I51: 111.389426 | J51: - | K51: - | L51: - | M51: - | N51: - | O51: - | P51: -
E52: 2400 | F52: 0.6797385621 | G52: - | H52: 25.19031142 | I52: 108.5202524 | J52: - | K52: - | L52: - | M52: - | N52: - | O52: - | P52: -
E53: 2450 | F53: 0.6938997821 | G53: - | H53: 25.71510957 | I53: 105.4327804 | J53: - | K53: - | L53: - | M53: - | N53: - | O53: - | P53: -
E54: 2500 | F54: 0.7080610022 | G54: - | H54: 26.23990773 | I54: 102.12701 | J54: - | K54: - | L54: - | M54: - | N54: - | O54: - | P54: -
E55: =E54+50 -> 2550 | F55: 0.7222222222 | G55: - | H55: 26.76470588 | I55: 98.60294118 | J55: - | K55: - | L55: - | M55: - | N55: - | O55: - | P55: -
E56: 2600 | F56: 0.7363834423 | G56: - | H56: 27.28950404 | I56: 94.86057399 | J56: - | K56: - | L56: - | M56: - | N56: - | O56: - | P56: -
E57: 2650 | F57: 0.7505446623 | G57: - | H57: 27.81430219 | I57: 90.89990841 | J57: - | K57: - | L57: - | M57: - | N57: - | O57: - | P57: -
E58: 2700 | F58: 0.7647058824 | G58: - | H58: 28.33910035 | I58: 86.72094443 | J58: - | K58: - | L58: - | M58: - | N58: - | O58: - | P58: -
E59: 2750 | F59: 0.7788671024 | G59: - | H59: 28.8638985 | I59: 82.32368207 | J59: - | K59: - | L59: - | M59: - | N59: - | O59: - | P59: -
E60: 2800 | F60: 0.7930283224 | G60: - | H60: 29.38869666 | I60: 77.70812131 | J60: - | K60: - | L60: - | M60: - | N60: - | O60: - | P60: -
E61: 2850 | F61: 0.8071895425 | G61: - | H61: 29.91349481 | I61: 72.87426216 | J61: - | K61: - | L61: - | M61: - | N61: - | O61: - | P61: -
E62: 2900 | F62: 0.8213507625 | G62: - | H62: 30.45272383 | I62: 67.88841283 | J62: 1.015090794 | K62: 1.095671355e-06 | L62: 2901.374896 | M62: 17.78541434 | N62: 0.02601628346 | O62: 1.374181245 | P62: 0.3014858498
E63: 2950 | F63: 0.8355119826 | G63: - | H63: 31.03648976 | I63: 62.87037267 | J63: 1.034549659 | K63: 4.255540694e-06 | L63: 2956.993035 | M63: 18.12635326 | N63: 0.0584427263 | O63: 6.990361165 | P63: 0.6892770943
E64: 3000 | F64: 0.8496732026 | G64: - | H64: 31.67305793 | I64: 57.81961477 | J64: 1.055768598 | K64: 1.322286018e-06 | L64: 3017.641893 | M64: 18.49813047 | N64: 0.09243980772 | O64: 17.64109552 | P64: 1.110939341
E65: 3050 | F65: 0.8638344227 | G65: - | H65: 32.37252083 | I65: 52.73322314 | J65: 1.079084028 | K65: 3.384503488e-06 | L65: 3084.283029 | M65: 18.90664032 | N65: 0.1282541905 | O65: 34.28107388 | P65: 1.572850683
E66: 3100 | F66: 0.8779956427 | G66: - | H66: 33.14795314 | I66: 47.6067967 | J66: 1.104931771 | K66: 1.25608244e-06 | L66: 3158.162129 | M66: 19.35951885 | N66: 0.1661917998 | O66: 58.16143675 | P66: 2.083250828
E67: =E66+50 -> 3150 | F67: 0.8921568627 | G67: - | H67: 34.01720145 | I67: 42.43570174 | J67: 1.133906715 | K67: 2.736531521e-06 | L67: 3240.979522 | M67: 19.86718908 | N67: 0.2066631654 | O67: 90.97809093 | P67: 2.653366799
E68: 3200 | F68: 0.9063180828 | G68: - | H68: 35.00512856 | I68: 37.21353503 | J68: 1.166837619 | K68: 4.140058277e-06 | L68: 3335.104007 | M68: 20.44417172 | N68: 0.2502197634 | O68: 135.1019622 | P68: 3.298798371
E69: 3250 | F69: 0.9204793028 | G69: =IF(F69<(1/3),3/2*(1-SQRT(1-8/3*F69)),IF(F69<(3*$C$7-1)/6/$C$7,1/3/(1-2*F69),"-")) -> - | H69: =IF(F69<(3*$C$7-1)/6/$C$7,$C$3/2,IF(F69<(3*$C$7-1)/3/$C$7,3*$C$7*E69/($C$4/100)/($C$6*$C$5*1000)/(3*$C$7-1)*100,J69*$C$3)) -> 36.14815848 | I69: =IF(F69<(1/3),$C$4/100*($C$3/100)^2*$C$6*$C$5*1000/48*G69*(8-3*G69),IF(F69<(3*$C$7-1)/6/$C$7,$C$4/100*($C$3/100)^2*$C$6*$C$5*1000/48*(6*G69^2-1)/G69^2,IF(F69<(3*$C$7-1)/3/$C$7,$C$4/100*$C$6*$C$5*1000*(6*$C$7^2-1)/12/$C$7^2*(H69/100)^2+E69*($C$3/2/100-H69/100),L69*M69/100-O69*P69/100-E69*(H69/100-$C$3/2/100)))) -> 31.93208428 | J69: 1.204938616 | K69: =IF(F69>(3*$C$7-1)/3/$C$7,($C$7-1)^3*J69^3+3*($C$7^2*(2-$C$7)-$C$7*F69)*J69^2+3*$C$7^2*($C$7-1)*J69-$C$7^3,"-") -> 3.356660708e-06 | L69: =IF(F69>(3*$C$7-1)/3/$C$7,$C$4/100*H69/100*$C$6*$C$5*1000/3/$C$7*(3*$C$7-1),"-") -> 3444.005868 | M69: =IF(F69>(3*$C$7-1)/3/$C$7,(6*$C$7^2-1)/4/$C$7/(3*$C$7-1)*H69,"-") -> 21.11173962 | N69: =IF(F69>(3*$C$7-1)/3/$C$7,$C$7*(H69-$C$3)/H69,"-") -> 0.2976438577 | O69: =IF(F69>(3*$C$7-1)/3/$C$7,$C$4/100*(H69/100-$C$3/100)*$C$6*$C$5*1000/3*N69*(3-N69),"-") -> 194.0043135 | P69: =IF(F69>(3*$C$7-1)/3/$C$7,(8-3*N69)/4/(3-N69)*(H69-$C$3),"-") -> 4.042341268
E70: =E69+50 -> 3300 | F70: =E70/($C$3*$C$4/10000*($C$5*1000)*$C$6) -> 0.9346405229 | G70: - | H70: 37.50291744 | I70: 26.58052731 | J70: 1.250097248 | K70: 2.869138585e-06 | L70: 3573.080156 | M70: 21.90296439 | N70: 0.3501089094 | O70: 273.0789216 | P70: 4.919336591
E71: 3350 | F71: 0.9488017429 | G71: - | H71: 39.164757 | I71: 21.14320997 | J71: 1.3054919 | K71: 7.293470023e-07 | L71: 3731.411464 | M71: 22.87353455 | N71: 0.4095091092 | O71: 381.4111758 | P71: 5.989106331
E72: 3400 | F72: 0.962962963 | G72: - | H72: 41.31532827 | I72: 15.59662825 | J72: 1.377177609 | K72: 4.896797156e-06 | L72: 3936.30655 | M72: 24.12954046 | N72: 0.4792851781 | O72: 536.3048138 | P72: 7.364262124
E73: 3450 | F73: 0.977124183 | G73: - | H73: 44.37851324 | I73: 9.89832835 | J73: 1.479283775 | K73: 3.568193155e-06 | L73: 4228.150657 | M73: 25.91854345 | N73: 0.5669950689 | O73: 778.1495604 | P73: 9.306441024
E74: 3500 | F74: 0.9912854031 | G74: - | H74: 49.91275649 | I74: 3.953263942 | J74: 1.66375855 | K74: 1.793486641e-06 | L74: 4755.424162 | M74: 29.15072753 | N74: 0.6981646839 | O74: 1255.423726 | P74: 12.77186307
E75: =C9 -> 3530.769231 | F75: =E75/($C$3*$C$4/10000*($C$5*1000)*$C$6) -> 1 | G75: =IF(F75<(1/3),3/2*(1-SQRT(1-8/3*F75)),IF(F75<(3*$C$7-1)/6/$C$7,1/3/(1-2*F75),"-")) -> - | H75: =IF(F75<(3*$C$7-1)/6/$C$7,$C$3/2,IF(F75<(3*$C$7-1)/3/$C$7,3*$C$7*E75/($C$4/100)/($C$6*$C$5*1000)/(3*$C$7-1)*100,J75*$C$3)) -> 69.50741542 | I75: =IF(F75<(1/3),$C$4/100*($C$3/100)^2*$C$6*$C$5*1000/48*G75*(8-3*G75),IF(F75<(3*$C$7-1)/6/$C$7,$C$4/100*($C$3/100)^2*$C$6*$C$5*1000/48*(6*G75^2-1)/G75^2,IF(F75<(3*$C$7-1)/3/$C$7,$C$4/100*$C$6*$C$5*1000*(6*$C$7^2-1)/12/$C$7^2*(H75/100)^2+E75*($C$3/2/100-H75/100),L75*M75/100-O75*P75/100-E75*(H75/100-$C$3/2/100)))) -> -9.25573911e-05 | J75: 2.316913847 | K75: =IF(F75>(3*$C$7-1)/3/$C$7,($C$7-1)^3*J75^3+3*($C$7^2*(2-$C$7)-$C$7*F75)*J75^2+3*$C$7^2*($C$7-1)*J75-$C$7^3,"-") -> -1.867507928e-06 | L75: =IF(F75>(3*$C$7-1)/3/$C$7,$C$4/100*H75/100*$C$6*$C$5*1000/3/$C$7*(3*$C$7-1),"-") -> 6622.299909 | M75: =IF(F75>(3*$C$7-1)/3/$C$7,(6*$C$7^2-1)/4/$C$7/(3*$C$7-1)*H75,"-") -> 40.59466699 | N75: =IF(F75>(3*$C$7-1)/3/$C$7,$C$7*(H75-$C$3)/H75,"-") -> 0.9946849062 | O75: =IF(F75>(3*$C$7-1)/3/$C$7,$C$4/100*(H75/100-$C$3/100)*$C$6*$C$5*1000/3*N75*(3-N75),"-") -> 3091.530912 | P75: =IF(F75>(3*$C$7-1)/3/$C$7,(8-3*N75)/4/(3-N75)*(H75-$C$3),"-") -> 24.70522396

Sheet 比較
B2: 数式解 | J2: エクセルマクロ
B3: =曲げ耐力!E3 -> 軸力N(kNm) | C3: =曲げ耐力!F3 -> N/(bhσ0) | D3: =曲げ耐力!G3 -> r | E3: =曲げ耐力!H3 -> X(cm) | F3: =曲げ耐力!I3 -> M(kNm) | G3: M/(bh^2σ0) | H3: X/h | J3: Mu | K3: N | L3: Xu | M3: Mc | N3: N | O3: Xc | AB3: ru | AC3: 1.75
B4: =曲げ耐力!E4 -> 0 | C4: =曲げ耐力!F4 -> 0 | D4: =曲げ耐力!G4 -> 0 | E4: =曲げ耐力!H4 -> 15 | F4: =曲げ耐力!I4 -> 0 | G4: =F4/(曲げ耐力!$C$4/100*(曲げ耐力!$C$3/100)^2*曲げ耐力!$C$6*曲げ耐力!$C$5*1000) -> 0 | H4: =E4/曲げ耐力!$C$3 -> 0.5 | J4: 0 | K4: -0.01998 | L4: 999 | M4: 0.02979067576 | N4: -0.01998 | O4: 8.546388446
B5: =曲げ耐力!E5 -> 50 | C5: =曲げ耐力!F5 -> 0.01416122004 | D5: =曲げ耐力!G5 -> 0.02859499806 | E5: =曲げ耐力!H5 -> 15 | F5: =曲げ耐力!I5 -> 4.993985379 | G5: =F5/(曲げ耐力!$C$4/100*(曲げ耐力!$C$3/100)^2*曲げ耐力!$C$6*曲げ耐力!$C$5*1000) -> 0.00471472839 | H5: =E5/曲げ耐力!$C$3 -> 0.5 | J5: 5.239958509 | K5: 35.25256907 | L5: 0.3044585285 | M5: 3.541391827 | N5: 35.25256907 | O5: 14.83421294 | AB5: -1 | AC5: -1
B6: =曲げ耐力!E6 -> 100 | C6: =曲げ耐力!F6 -> 0.02832244009 | D6: =曲げ耐力!G6 -> 0.05775683067 | E6: =曲げ耐力!H6 -> 15 | F6: =曲げ耐力!I6 -> 9.975462246 | G6: =F6/(曲げ耐力!$C$4/100*(曲げ耐力!$C$3/100)^2*曲げ耐力!$C$6*曲げ耐力!$C$5*1000) -> 0.009417647727 | H6: =E6/曲げ耐力!$C$3 -> 0.5 | J6: 10.37171907 | K6: 70.52511813 | L6: 0.6338136987 | M6: 7.056883344 | N6: 70.52511813 | O6: 14.91674984 | AB6: =(3*$AC$3-1)^2/12/(6*$AC$3^2-4*$AC$3+1) -> 0.1216329966 | AC6: =(3*$AC$3-1)^2/3/(6*$AC$3^2-4*$AC$3+1) -> 0.4865319865
B7: =曲げ耐力!E7 -> 150 | C7: =曲げ耐力!F7 -> 0.04248366013 | D7: =曲げ耐力!G7 -> 0.08752060574 | E7: =曲げ耐力!H7 -> 15 | F7: =曲げ耐力!I7 -> 14.94365586 | G7: =F7/(曲げ耐力!$C$4/100*(曲げ耐力!$C$3/100)^2*曲げ耐力!$C$6*曲げ耐力!$C$5*1000) -> 0.0141080266 | H7: =E7/曲げ耐力!$C$3 -> 0.5 | J7: 15.36813306 | K7: 105.7976672 | L7: 1.078158139 | M7: 10.56732019 | N7: 105.7976672 | O7: 14.94468772
B8: =曲げ耐力!E8 -> 200 | C8: =曲げ耐力!F8 -> 0.05664488017 | D8: =曲げ耐力!G8 -> 0.1179252122 | E8: =曲げ耐力!H8 -> 15 | F8: =曲げ耐力!I8 -> 19.89770806 | G8: =F8/(曲げ耐力!$C$4/100*(曲げ耐力!$C$3/100)^2*曲げ耐力!$C$6*曲げ耐力!$C$5*1000) -> 0.01878505481 | H8: =E8/曲げ耐力!$C$3 -> 0.5 | J8: 20.28631952 | K8: 141.0702163 | L8: 1.446075523 | M8: 14.06935718 | N8: 141.0702163 | O8: 14.95873176 | AB8: -1 | AC8: -1
B9: =曲げ耐力!E9 -> 250 | C9: =曲げ耐力!F9 -> 0.07080610022 | D9: =曲げ耐力!G9 -> 0.1490139162 | E9: =曲げ耐力!H9 -> 15 | F9: =曲げ耐力!I9 -> 24.83666406 | G9: =F9/(曲げ耐力!$C$4/100*(曲げ耐力!$C$3/100)^2*曲げ耐力!$C$6*曲げ耐力!$C$5*1000) -> 0.02344783099 | H9: =E9/曲げ耐力!$C$3 -> 0.5 | J9: 25.07660786 | K9: 176.3427653 | L9: 1.811708567 | M9: 17.58002835 | N9: 176.3427653 | O9: 14.96721826 | AB9: =(6*$AC$3^2-1)/48/$AC$3^2 -> 0.1181972789 | AC9: =(3*$AC$3-1)/6/$AC$3 -> 0.4047619048
B10: =曲げ耐力!E10 -> 300 | C10: =曲げ耐力!F10 -> 0.08496732026 | D10: =曲げ耐力!G10 -> 0.1808350829 | E10: =曲げ耐力!H10 -> 15 | F10: =曲げ耐力!I10 -> 29.75945658 | G10: =F10/(曲げ耐力!$C$4/100*(曲げ耐力!$C$3/100)^2*曲げ耐力!$C$6*曲げ耐力!$C$5*1000) -> 0.02809534754 | H10: =E10/曲げ耐力!$C$3 -> 0.5 | J10: 29.7760198 | K10: 211.6153144 | L10: 2.198624868 | M10: 21.06067083 | N10: 211.6153144 | O10: 14.9728509
B11: =曲げ耐力!E11 -> 350 | C11: =曲げ耐力!F11 -> 0.09912854031 | D11: =曲げ耐力!G11 -> 0.2134430607 | E11: =曲げ耐力!H11 -> 15 | F11: =曲げ耐力!I11 -> 34.66488631 | G11: =F11/(曲げ耐力!$C$4/100*(曲げ耐力!$C$3/100)^2*曲げ耐力!$C$6*曲げ耐力!$C$5*1000) -> 0.03272647218 | H11: =E11/曲げ耐力!$C$3 -> 0.5 | J11: 34.35596931 | K11: 246.8878635 | L11: 2.570502968 | M11: 24.55437123 | N11: 246.8878635 | O11: 14.9769064
B12: =曲げ耐力!E12 -> 400 | C12: =曲げ耐力!F12 -> 0.1132897603 | D12: =曲げ耐力!G12 -> 0.2468992706 | E12: =曲げ耐力!H12 -> 15 | F12: =曲げ耐力!I12 -> 39.55159783 | G12: =F12/(曲げ耐力!$C$4/100*(曲げ耐力!$C$3/100)^2*曲げ耐力!$C$6*曲げ耐力!$C$5*1000) -> 0.03733992533 | H12: =E12/曲げ耐力!$C$3 -> 0.5 | J12: 38.83013273 | K12: 282.1604125 | L12: 2.940288951 | M12: 27.98739136 | N12: 282.1604125 | O12: 14.97991047
B13: =曲げ耐力!E13 -> 450 | C13: =曲げ耐力!F13 -> 0.1274509804 | D13: =曲げ耐力!G13 -> 0.2812735673 | E13: =曲げ耐力!H13 -> 15 | F13: =曲げ耐力!I13 -> 44.41804964 | G13: =F13/(曲げ耐力!$C$4/100*(曲げ耐力!$C$3/100)^2*曲げ耐力!$C$6*曲げ耐力!$C$5*1000) -> 0.04193425166 | H13: =E13/曲げ耐力!$C$3 -> 0.5 | J13: 43.20324126 | K13: 317.4329616 | L13: 3.313704846 | M13: 31.50445436 | N13: 317.4329616 | O13: 14.98231373
B14: =曲げ耐力!E14 -> 500 | C14: =曲げ耐力!F14 -> 0.1416122004 | D14: =曲げ耐力!G14 -> 0.3166459543 | E14: =曲げ耐力!H14 -> 15 | F14: =曲げ耐力!I14 -> 49.2624763 | G14: =F14/(曲げ耐力!$C$4/100*(曲げ耐力!$C$3/100)^2*曲げ耐力!$C$6*曲げ耐力!$C$5*1000) -> 0.04650778445 | H14: =E14/曲げ耐力!$C$3 -> 0.5 | J14: 47.45381717 | K14: 352.7055107 | L14: 3.686146207 | M14: 34.92677738 | N14: 352.7055107 | O14: 14.98419127
B15: =曲げ耐力!E15 -> 550 | C15: =曲げ耐力!F15 -> 0.1557734205 | D15: =曲げ耐力!G15 -> 0.3531087771 | E15: =曲げ耐力!H15 -> 15 | F15: =曲げ耐力!I15 -> 54.08283997 | G15: =F15/(曲げ耐力!$C$4/100*(曲げ耐力!$C$3/100)^2*曲げ耐力!$C$6*曲げ耐力!$C$5*1000) -> 0.05105859982 | H15: =E15/曲げ耐力!$C$3 -> 0.5 | J15: 51.6067848 | K15: 387.9780597 | L15: 4.058149476 | M15: 38.4252628 | N15: 387.9780597 | O15: 14.98576841
B16: =曲げ耐力!E16 -> 600 | C16: =曲げ耐力!F16 -> 0.1699346405 | D16: =曲げ耐力!G16 -> 0.3907695655 | E16: =曲げ耐力!H16 -> 15 | F16: =曲げ耐力!I16 -> 58.87676776 | G16: =F16/(曲げ耐力!$C$4/100*(曲げ耐力!$C$3/100)^2*曲げ耐力!$C$6*曲げ耐力!$C$5*1000) -> 0.05558445758 | H16: =E16/曲げ耐力!$C$3 -> 0.5 | J16: 55.64989399 | K16: 423.2506088 | L16: 4.42861495 | M16: 41.80723321 | N16: 423.2506088 | O16: 14.98704514
B17: =曲げ耐力!E17 -> 650 | C17: =曲げ耐力!F17 -> 0.1840958606 | D17: =曲げ耐力!G17 -> 0.4297547774 | E17: =曲げ耐力!H17 -> 15 | F17: =曲げ耐力!I17 -> 63.6414691 | G17: =F17/(曲げ耐力!$C$4/100*(曲げ耐力!$C$3/100)^2*曲げ耐力!$C$6*曲げ耐力!$C$5*1000) -> 0.06008272318 | H17: =E17/曲げ耐力!$C$3 -> 0.5 | J17: 59.57690446 | K17: 458.5231579 | L17: 4.799008899 | M17: 45.31675424 | N17: 458.5231579 | O17: 14.98817167
B18: =曲げ耐力!E18 -> 700 | C18: =曲げ耐力!F18 -> 0.1982570806 | D18: =曲げ耐力!G18 -> 0.4702148203 | E18: =曲げ耐力!H18 -> 15 | F18: =曲げ耐力!I18 -> 68.37362488 | G18: =F18/(曲げ耐力!$C$4/100*(曲げ耐力!$C$3/100)^2*曲げ耐力!$C$6*曲げ耐力!$C$5*1000) -> 0.06455026314 | H18: =E18/曲げ耐力!$C$3 -> 0.5 | J18: 63.40508422 | K18: 493.7957069 | L18: 5.17197776 | M18: 48.56888317 | N18: 493.7957069 | O18: 14.98907289
B19: =曲げ耐力!E19 -> 750 | C19: =曲げ耐力!F19 -> 0.2124183007 | D19: =曲げ耐力!G19 -> 0.5123309279 | E19: =曲げ耐力!H19 -> 15 | F19: =曲げ耐力!I19 -> 73.06923577 | G19: =F19/(曲げ耐力!$C$4/100*(曲げ耐力!$C$3/100)^2*曲げ耐力!$C$6*曲げ耐力!$C$5*1000) -> 0.06898330175 | H19: =E19/曲げ耐力!$C$3 -> 0.5 | J19: 67.11888517 | K19: 529.068256 | L19: 5.542192896 | M19: 51.97639058 | N19: 529.068256 | O19: 14.98989901
B20: =曲げ耐力!E20 -> 800 | C20: =曲げ耐力!F20 -> 0.2265795207 | D20: =曲げ耐力!G20 -> 0.5563248039 | E20: =曲げ耐力!H20 -> 15 | F20: =曲げ耐力!I20 -> 77.72340938 | G20: =F20/(曲げ耐力!$C$4/100*(曲げ耐力!$C$3/100)^2*曲げ耐力!$C$6*曲げ耐力!$C$5*1000) -> 0.07337722018 | H20: =E20/曲げ耐力!$C$3 -> 0.5 | J20: 70.72654838 | K20: 564.3408051 | L20: 5.91265837 | M20: 55.50215235 | N20: 564.3408051 | O20: 14.99065003
B21: =曲げ耐力!E21 -> 850 | C21: =曲げ耐力!F21 -> 0.2407407407 | D21: =曲げ耐力!G21 -> 0.6024725321 | E21: =曲げ耐力!H21 -> 15 | F21: =曲げ耐力!I21 -> 82.33005326 | G21: =F21/(曲げ耐力!$C$4/100*(曲げ耐力!$C$3/100)^2*曲げ耐力!$C$6*曲げ耐力!$C$5*1000) -> 0.07772626669 | H21: =E21/曲げ耐力!$C$3 -> 0.5 | J21: 74.22598663 | K21: 599.6133541 | L21: 6.284017911 | M21: 58.67252302 | N21: 599.6133541 | O21: 14.99125084
B22: =曲げ耐力!E22 -> 900 | C22: =曲げ耐力!F22 -> 0.2549019608 | D22: =曲げ耐力!G22 -> 0.6511253124 | E22: =曲げ耐力!H22 -> 15 | F22: =曲げ耐力!I22 -> 86.88141739 | G22: =F22/(曲げ耐力!$C$4/100*(曲げ耐力!$C$3/100)^2*曲げ耐力!$C$6*曲げ耐力!$C$5*1000) -> 0.08202312462 | H22: =E22/曲げ耐力!$C$3 -> 0.5 | J22: 77.61113151 | K22: 634.8859032 | L22: 6.654626436 | M22: 62.20786487 | N22: 634.8859032 | O22: 14.99185166
B23: =曲げ耐力!E23 -> 950 | C23: =曲げ耐力!F23 -> 0.2690631808 | D23: =曲げ耐力!G23 -> 0.7027416259 | E23: =曲げ耐力!H23 -> 15 | F23: =曲げ耐力!I23 -> 91.36738431 | G23: =F23/(曲げ耐力!$C$4/100*(曲げ耐力!$C$3/100)^2*曲げ耐力!$C$6*曲げ耐力!$C$5*1000) -> 0.08625824227 | H23: =E23/曲げ耐力!$C$3 -> 0.5 | J23: 80.89574478 | K23: 670.1584523 | L23: 7.025413774 | M23: 65.64862886 | N23: 670.1584523 | O23: 14.99237737
B24: =曲げ耐力!E24 -> 1000 | C24: =曲げ耐力!F24 -> 0.2832244009 | D24: =曲げ耐力!G24 -> 0.7579396286 | E24: =曲げ耐力!H24 -> 15 | F24: =曲げ耐力!I24 -> 95.774313 | G24: =F24/(曲げ耐力!$C$4/100*(曲げ耐力!$C$3/100)^2*曲げ耐力!$C$6*曲げ耐力!$C$5*1000) -> 0.0904187414 | H24: =E24/曲げ耐力!$C$3 -> 0.5 | J24: 84.06810108 | K24: 705.4310013 | L24: 7.395754079 | M24: 68.89361187 | N24: 705.4310013 | O24: 14.99282798
B25: =曲げ耐力!E25 -> 1050 | C25: =曲げ耐力!F25 -> 0.2973856209 | D25: =曲げ耐力!G25 -> 0.8175878998 | E25: =曲げ耐力!H25 -> 15 | F25: =曲げ耐力!I25 -> 100.0830362 | G25: =F25/(曲げ耐力!$C$4/100*(曲げ耐力!$C$3/100)^2*曲げ耐力!$C$6*曲げ耐力!$C$5*1000) -> 0.0944865266 | H25: =E25/曲げ耐力!$C$3 -> 0.5 | J25: 87.12853351 | K25: 740.7035504 | L25: 7.766469892 | M25: 72.44703646 | N25: 740.7035504 | O25: 14.99327859
B26: =曲げ耐力!E26 -> 1100 | C26: =曲げ耐力!F26 -> 0.311546841 | D26: =曲げ耐力!G26 -> 0.8829757264 | E26: =曲げ耐力!H26 -> 15 | F26: =曲げ耐力!I26 -> 104.265103 | G26: =F26/(曲げ耐力!$C$4/100*(曲げ耐力!$C$3/100)^2*曲げ耐力!$C$6*曲げ耐力!$C$5*1000) -> 0.09843473773 | H26: =E26/曲げ耐力!$C$3 -> 0.5 | J26: 90.085843 | K26: 775.9760995 | L26: 8.137400281 | M26: 75.6710823 | N26: 775.9760995 | O26: 14.9936541
B27: =曲げ耐力!E27 -> 1150 | C27: =曲げ耐力!F27 -> 0.325708061 | D27: =曲げ耐力!G27 -> 0.9561694805 | E27: =曲げ耐力!H27 -> 15 | F27: =曲げ耐力!I27 -> 108.2749139 | G27: =F27/(曲げ耐力!$C$4/100*(曲げ耐力!$C$3/100)^2*曲げ耐力!$C$6*曲げ耐力!$C$5*1000) -> 0.1022203254 | H27: =E27/曲げ耐力!$C$3 -> 0.5 | J27: 92.93068002 | K27: 811.2486485 | L27: 8.507472366 | M27: 78.43883646 | N27: 811.2486485 | O27: 14.99395451
B28: =曲げ耐力!E28 -> 1200 | C28: =曲げ耐力!F28 -> 0.339869281 | D28: =曲げ耐力!G28 -> 1.040816327 | E28: =曲げ耐力!H28 -> 15 | F28: =曲げ耐力!I28 -> 112.033371 | G28: =F28/(曲げ耐力!$C$4/100*(曲げ耐力!$C$3/100)^2*曲げ耐力!$C$6*曲げ耐力!$C$5*1000) -> 0.1057686146 | H28: =E28/曲げ耐力!$C$3 -> 0.5 | J28: 95.66965348 | K28: 846.5211976 | L28: 8.878045128 | M28: 82.15199548 | N28: 846.5211976 | O28: 14.99433002
B29: =曲げ耐力!E29 -> 1250 | C29: =曲げ耐力!F29 -> 0.3540305011 | D29: =曲げ耐力!G29 -> 1.141791045 | E29: =曲げ耐力!H29 -> 15 | F29: =曲げ耐力!I29 -> 115.4769985 | G29: =F29/(曲げ耐力!$C$4/100*(曲げ耐力!$C$3/100)^2*曲げ耐力!$C$6*曲げ耐力!$C$5*1000) -> 0.109019679 | H29: =E29/曲げ耐力!$C$3 -> 0.5 | J29: 98.2981452 | K29: 881.7937467 | L29: 9.248832466 | M29: 85.33879347 | N29: 881.7937467 | O29: 14.99463042 | AB29: -1 | AC29: -1
B30: =曲げ耐力!E30 -> 1300 | C30: =曲げ耐力!F30 -> 0.3681917211 | D30: =曲げ耐力!G30 -> 1.26446281 | E30: =曲げ耐力!H30 -> 15 | F30: =曲げ耐力!I30 -> 118.6019985 | G30: =F30/(曲げ耐力!$C$4/100*(曲げ耐力!$C$3/100)^2*曲げ耐力!$C$6*曲げ耐力!$C$5*1000) -> 0.1119699332 | H30: =E30/曲げ耐力!$C$3 -> 0.5 | J30: 100.8158255 | K30: 917.0662957 | L30: 9.619047602 | M30: 88.72581024 | N30: 917.0662957 | O30: 14.99493083 | AB30: =(3*$AC$3-1)/6/$AC$3 -> 0.4047619048 | AC30: 0.5
B31: =曲げ耐力!E31 -> 1350 | C31: =曲げ耐力!F31 -> 0.3823529412 | D31: =曲げ耐力!G31 -> 1.416666667 | E31: =曲げ耐力!H31 -> 15 | F31: =曲げ耐力!I31 -> 121.408371 | G31: =F31/(曲げ耐力!$C$4/100*(曲げ耐力!$C$3/100)^2*曲げ耐力!$C$6*曲げ耐力!$C$5*1000) -> 0.1146193772 | H31: =E31/曲げ耐力!$C$3 -> 0.5 | J31: 103.2310121 | K31: 952.3388448 | L31: 9.989548839 | M31: 91.39954443 | N31: 952.3388448 | O31: 14.99515614
B32: =曲げ耐力!E32 -> 1400 | C32: =曲げ耐力!F32 -> 0.3965141612 | D32: =曲げ耐力!G32 -> 1.610526316 | E32: =曲げ耐力!H32 -> 15 | F32: =曲げ耐力!I32 -> 123.8961161 | G32: =F32/(曲げ耐力!$C$4/100*(曲げ耐力!$C$3/100)^2*曲げ耐力!$C$6*曲げ耐力!$C$5*1000) -> 0.1169680109 | H32: =E32/曲げ耐力!$C$3 -> 0.5 | J32: 105.5331129 | K32: 987.6113939 | L32: 10.3598355 | M32: 95.13677939 | N32: 987.6113939 | O32: 14.99545654 | AB32: -1 | AC32: -1
B33: =曲げ耐力!E33 -> 1450 | C33: =曲げ耐力!F33 -> 0.4106753813 | D33: =曲げ耐力!G33 -> - | E33: =曲げ耐力!H33 -> 15.21914648 | F33: =曲げ耐力!I33 -> 125.7055262 | G33: =F33/(曲げ耐力!$C$4/100*(曲げ耐力!$C$3/100)^2*曲げ耐力!$C$6*曲げ耐力!$C$5*1000) -> 0.1186762411 | H33: =E33/曲げ耐力!$C$3 -> 0.5073048827 | J33: 107.7263642 | K33: 1022.883943 | L33: 10.73047979 | M33: 98.0594048 | N33: 1022.883943 | O33: 14.99568185 | AB33: =(3*$AC$3-1)/3/$AC$3 -> 0.8095238095 | AC33: 1
B34: =曲げ耐力!E34 -> 1500 | C34: =曲げ耐力!F34 -> 0.4248366013 | D34: =曲げ耐力!G34 -> - | E34: =曲げ耐力!H34 -> 15.74394464 | F34: =曲げ耐力!I34 -> 126.7657236 | G34: =F34/(曲げ耐力!$C$4/100*(曲げ耐力!$C$3/100)^2*曲げ耐力!$C$6*曲げ耐力!$C$5*1000) -> 0.1196771537 | H34: =E34/曲げ耐力!$C$3 -> 0.5247981546 | J34: 109.8138514 | K34: 1058.156492 | L34: 11.1009095 | M34: 101.0662388 | N34: 1058.156492 | O34: 14.99590715
B35: =曲げ耐力!E35 -> 1550 | C35: =曲げ耐力!F35 -> 0.4389978214 | D35: =曲げ耐力!G35 -> - | E35: =曲げ耐力!H35 -> 16.26874279 | F35: =曲げ耐力!I35 -> 127.6076226 | G35: =F35/(曲げ耐力!$C$4/100*(曲げ耐力!$C$3/100)^2*曲げ耐力!$C$6*曲げ耐力!$C$5*1000) -> 0.1204719749 | H35: =E35/曲げ耐力!$C$3 -> 0.5422914264 | J35: 111.7897852 | K35: 1093.429041 | L35: 11.47105311 | M35: 104.1281034 | N35: 1093.429041 | O35: 14.99613246 | AB35: -1 | AC35: -1
B36: =曲げ耐力!E36 -> 1600 | C36: =曲げ耐力!F36 -> 0.4531590414 | D36: =曲げ耐力!G36 -> - | E36: =曲げ耐力!H36 -> 16.79354095 | F36: =曲げ耐力!I36 -> 128.2312233 | G36: =F36/(曲げ耐力!$C$4/100*(曲げ耐力!$C$3/100)^2*曲げ耐力!$C$6*曲げ耐力!$C$5*1000) -> 0.1210607046 | H36: =E36/曲げ耐力!$C$3 -> 0.5597846982 | J36: 113.6596446 | K36: 1128.70159 | L36: 11.84155435 | M36: 106.1777195 | N36: 1128.70159 | O36: 14.99628266 | AB36: 1 | AC36: =$AC$3/($AC$3-1) -> 2.333333333
B37: =曲げ耐力!E37 -> 1650 | C37: =曲げ耐力!F37 -> 0.4673202614 | D37: =曲げ耐力!G37 -> - | E37: =曲げ耐力!H37 -> 17.3183391 | F37: =曲げ耐力!I37 -> 128.6365255 | G37: =F37/(曲げ耐力!$C$4/100*(曲げ耐力!$C$3/100)^2*曲げ耐力!$C$6*曲げ耐力!$C$5*1000) -> 0.1214433429 | H37: =E37/曲げ耐力!$C$3 -> 0.57727797 | J37: 115.4189035 | K37: 1163.974139 | L37: 12.21205558 | M37: 109.2110099 | N37: 1163.974139 | O37: 14.99650797
B38: =曲げ耐力!E38 -> 1700 | C38: =曲げ耐力!F38 -> 0.4814814815 | D38: =曲げ耐力!G38 -> - | E38: =曲げ耐力!H38 -> 17.84313725 | F38: =曲げ耐力!I38 -> 128.8235294 | G38: =F38/(曲げ耐力!$C$4/100*(曲げ耐力!$C$3/100)^2*曲げ耐力!$C$6*曲げ耐力!$C$5*1000) -> 0.1216198898 | H38: =E38/曲げ耐力!$C$3 -> 0.5947712418 | J38: 117.068858 | K38: 1199.246688 | L38: 12.58219919 | M38: 112.1045552 | N38: 1199.246688 | O38: 14.99673327
B39: =曲げ耐力!E39 -> 1750 | C39: =曲げ耐力!F39 -> 0.4956427015 | D39: =曲げ耐力!G39 -> - | E39: =曲げ耐力!H39 -> 18.36793541 | F39: =曲げ耐力!I39 -> 128.7922349 | G39: =F39/(曲げ耐力!$C$4/100*(曲げ耐力!$C$3/100)^2*曲げ耐力!$C$6*曲げ耐力!$C$5*1000) -> 0.1215903452 | H39: =E39/曲げ耐力!$C$3 -> 0.6122645136 | J39: 118.6141703 | K39: 1234.519237 | L39: 12.9526289 | M39: 114.8052045 | N39: 1234.519237 | O39: 14.99695858
B40: =曲げ耐力!E40 -> 1800 | C40: =曲げ耐力!F40 -> 0.5098039216 | D40: =曲げ耐力!G40 -> - | E40: =曲げ耐力!H40 -> 18.89273356 | F40: =曲げ耐力!I40 -> 128.542642 | G40: =F40/(曲げ耐力!$C$4/100*(曲げ耐力!$C$3/100)^2*曲げ耐力!$C$6*曲げ耐力!$C$5*1000) -> 0.1213547092 | H40: =E40/曲げ耐力!$C$3 -> 0.6297577855 | J40: 120.0466727 | K40: 1269.791786 | L40: 13.32298709 | M40: 116.4990329 | N40: 1269.791786 | O40: 14.99710878
B41: =曲げ耐力!E41 -> 1850 | C41: =曲げ耐力!F41 -> 0.5239651416 | D41: =曲げ耐力!G41 -> - | E41: =曲げ耐力!H41 -> 19.41753172 | F41: =曲げ耐力!I41 -> 128.0747507 | G41: =F41/(曲げ耐力!$C$4/100*(曲げ耐力!$C$3/100)^2*曲げ耐力!$C$6*曲げ耐力!$C$5*1000) -> 0.1209129817 | H41: =E41/曲げ耐力!$C$3 -> 0.6472510573 | J41: 121.3722376 | K41: 1305.064335 | L41: 13.6934168 | M41: 118.8789288 | N41: 1305.064335 | O41: 14.99733409
B42: =曲げ耐力!E42 -> 1900 | C42: =曲げ耐力!F42 -> 0.5381263617 | D42: =曲げ耐力!G42 -> - | E42: =曲げ耐力!H42 -> 19.94232987 | F42: =曲げ耐力!I42 -> 127.388561 | G42: =F42/(曲げ耐力!$C$4/100*(曲げ耐力!$C$3/100)^2*曲げ耐力!$C$6*曲げ耐力!$C$5*1000) -> 0.1202651629 | H42: =E42/曲げ耐力!$C$3 -> 0.6647443291 | J42: 122.590035 | K42: 1340.336885 | L42: 14.06370346 | M42: 121.0654448 | N42: 1340.336885 | O42: 14.99755939
B43: =曲げ耐力!E43 -> 1950 | C43: =曲げ耐力!F43 -> 0.5522875817 | D43: =曲げ耐力!G43 -> - | E43: =曲げ耐力!H43 -> 20.46712803 | F43: =曲げ耐力!I43 -> 126.4840729 | G43: =F43/(曲げ耐力!$C$4/100*(曲げ耐力!$C$3/100)^2*曲げ耐力!$C$6*曲げ耐力!$C$5*1000) -> 0.1194112525 | H43: =E43/曲げ耐力!$C$3 -> 0.6822376009 | J43: 123.6967817 | K43: 1375.609434 | L43: 14.43388284 | M43: 122.4163719 | N43: 1375.609434 | O43: 14.9977096
B44: =曲げ耐力!E44 -> 2000 | C44: =曲げ耐力!F44 -> 0.5664488017 | D44: =曲げ耐力!G44 -> - | E44: =曲げ耐力!H44 -> 20.99192618 | F44: =曲げ耐力!I44 -> 125.3612864 | G44: =F44/(曲げ耐力!$C$4/100*(曲げ耐力!$C$3/100)^2*曲げ耐力!$C$6*曲げ耐力!$C$5*1000) -> 0.1183512508 | H44: =E44/曲げ耐力!$C$3 -> 0.6997308727 | J44: 124.6975076 | K44: 1410.881983 | L44: 14.80438407 | M44: 124.2806573 | N44: 1410.881983 | O44: 14.9979349
B45: =曲げ耐力!E45 -> 2050 | C45: =曲げ耐力!F45 -> 0.5806100218 | D45: =曲げ耐力!G45 -> - | E45: =曲げ耐力!H45 -> 21.51672434 | F45: =曲げ耐力!I45 -> 124.0202015 | G45: =F45/(曲げ耐力!$C$4/100*(曲げ耐力!$C$3/100)^2*曲げ耐力!$C$6*曲げ耐力!$C$5*1000) -> 0.1170851576 | H45: =E45/曲げ耐力!$C$3 -> 0.7172241446 | J45: 125.5879973 | K45: 1446.154532 | L45: 15.17474226 | M45: 0 | N45: 1446.154532 | O45: 14.99816021
B46: =曲げ耐力!E46 -> 2100 | C46: =曲げ耐力!F46 -> 0.5947712418 | D46: =曲げ耐力!G46 -> - | E46: =曲げ耐力!H46 -> 22.04152249 | F46: =曲げ耐力!I46 -> 122.4608182 | G46: =F46/(曲げ耐力!$C$4/100*(曲げ耐力!$C$3/100)^2*曲げ耐力!$C$6*曲げ耐力!$C$5*1000) -> 0.1156129729 | H46: =E46/曲げ耐力!$C$3 -> 0.7347174164 | J46: 126.3701163 | K46: 1481.427081 | L46: 15.5449574 | M46: 0 | N46: 1481.427081 | O46: 14.99838551
B47: =曲げ耐力!E47 -> 2150 | C47: =曲げ耐力!F47 -> 0.6089324619 | D47: =曲げ耐力!G47 -> - | E47: =曲げ耐力!H47 -> 22.56632065 | F47: =曲げ耐力!I47 -> 120.6831366 | G47: =F47/(曲げ耐力!$C$4/100*(曲げ耐力!$C$3/100)^2*曲げ耐力!$C$6*曲げ耐力!$C$5*1000) -> 0.1139346968 | H47: =E47/曲げ耐力!$C$3 -> 0.7522106882 | J47: 127.0451177 | K47: 1516.69963 | L47: 15.91531558 | M47: 0 | N47: 1516.69963 | O47: 14.99853572
B48: =曲げ耐力!E48 -> 2200 | C48: =曲げ耐力!F48 -> 0.6230936819 | D48: =曲げ耐力!G48 -> - | E48: =曲げ耐力!H48 -> 23.0911188 | F48: =曲げ耐力!I48 -> 118.6871565 | G48: =F48/(曲げ耐力!$C$4/100*(曲げ耐力!$C$3/100)^2*曲げ耐力!$C$6*曲げ耐力!$C$5*1000) -> 0.1120503293 | H48: =E48/曲げ耐力!$C$3 -> 0.76970396 | J48: 127.6080762 | K48: 1551.972179 | L48: 16.28553072 | M48: 0 | N48: 1551.972179 | O48: 14.99876102
B49: =曲げ耐力!E49 -> 2250 | C49: =曲げ耐力!F49 -> 0.637254902 | D49: =曲げ耐力!G49 -> - | E49: =曲げ耐力!H49 -> 23.61591696 | F49: =曲げ耐力!I49 -> 116.4728781 | G49: =F49/(曲げ耐力!$C$4/100*(曲げ耐力!$C$3/100)^2*曲げ耐力!$C$6*曲げ耐力!$C$5*1000) -> 0.1099598704 | H49: =E49/曲げ耐力!$C$3 -> 0.7871972318 | J49: 128.065546 | K49: 1587.244728 | L49: 16.6558889 | M49: 0 | N49: 1587.244728 | O49: 14.99898633
B50: =曲げ耐力!E50 -> 2300 | C50: =曲げ耐力!F50 -> 0.651416122 | D50: =曲げ耐力!G50 -> - | E50: =曲げ耐力!H50 -> 24.14071511 | F50: =曲げ耐力!I50 -> 114.0403012 | G50: =F50/(曲げ耐力!$C$4/100*(曲げ耐力!$C$3/100)^2*曲げ耐力!$C$6*曲げ耐力!$C$5*1000) -> 0.10766332 | H50: =E50/曲げ耐力!$C$3 -> 0.8046905037 | J50: 128.4136575 | K50: 1622.517277 | L50: 17.02610404 | M50: 0 | N50: 1622.517277 | O50: 14.99913653
B51: =曲げ耐力!E51 -> 2350 | C51: =曲げ耐力!F51 -> 0.665577342 | D51: =曲げ耐力!G51 -> - | E51: =曲げ耐力!H51 -> 24.66551326 | F51: =曲げ耐力!I51 -> 111.389426 | G51: =F51/(曲げ耐力!$C$4/100*(曲げ耐力!$C$3/100)^2*曲げ耐力!$C$6*曲げ耐力!$C$5*1000) -> 0.1051606782 | H51: =E51/曲げ耐力!$C$3 -> 0.8221837755 | J51: 128.6516039 | K51: 1657.789826 | L51: 17.39646223 | M51: 0 | N51: 1657.789826 | O51: 14.99936184
B52: =曲げ耐力!E52 -> 2400 | C52: =曲げ耐力!F52 -> 0.6797385621 | D52: =曲げ耐力!G52 -> - | E52: =曲げ耐力!H52 -> 25.19031142 | F52: =曲げ耐力!I52 -> 108.5202524 | G52: =F52/(曲げ耐力!$C$4/100*(曲げ耐力!$C$3/100)^2*曲げ耐力!$C$6*曲げ耐力!$C$5*1000) -> 0.1024519449 | H52: =E52/曲げ耐力!$C$3 -> 0.8396770473 | J52: 128.7831678 | K52: 1693.062375 | L52: 17.76682041 | M52: 0 | N52: 1693.062375 | O52: 14.99958714
B53: =曲げ耐力!E53 -> 2450 | C53: =曲げ耐力!F53 -> 0.6938997821 | D53: =曲げ耐力!G53 -> - | E53: =曲げ耐力!H53 -> 25.71510957 | F53: =曲げ耐力!I53 -> 105.4327804 | G53: =F53/(曲げ耐力!$C$4/100*(曲げ耐力!$C$3/100)^2*曲げ耐力!$C$6*曲げ耐力!$C$5*1000) -> 0.09953712018 | H53: =E53/曲げ耐力!$C$3 -> 0.8571703191 | J53: 128.8044607 | K53: 1728.334924 | L53: 18.13703555 | M53: 0 | N53: 1728.334924 | O53: 14.99973735
B54: =曲げ耐力!E54 -> 2500 | C54: =曲げ耐力!F54 -> 0.7080610022 | D54: =曲げ耐力!G54 -> - | E54: =曲げ耐力!H54 -> 26.23990773 | F54: =曲げ耐力!I54 -> 102.12701 | G54: =F54/(曲げ耐力!$C$4/100*(曲げ耐力!$C$3/100)^2*曲げ耐力!$C$6*曲げ耐力!$C$5*1000) -> 0.09641620404 | H54: =E54/曲げ耐力!$C$3 -> 0.8746635909 | J54: 128.7180106 | K54: 1763.607473 | L54: 18.50725068 | M54: 0 | N54: 1763.607473 | O54: 999
B55: =曲げ耐力!E55 -> 2550 | C55: =曲げ耐力!F55 -> 0.7222222222 | D55: =曲げ耐力!G55 -> - | E55: =曲げ耐力!H55 -> 26.76470588 | F55: =曲げ耐力!I55 -> 98.60294118 | G55: =F55/(曲げ耐力!$C$4/100*(曲げ耐力!$C$3/100)^2*曲げ耐力!$C$6*曲げ耐力!$C$5*1000) -> 0.09308919646 | H55: =E55/曲げ耐力!$C$3 -> 0.8921568627 | J55: 128.5230346 | K55: 1798.880022 | L55: 18.87760887 | M55: 0 | N55: 1798.880022 | O55: 999
B56: =曲げ耐力!E56 -> 2600 | C56: =曲げ耐力!F56 -> 0.7363834423 | D56: =曲げ耐力!G56 -> - | E56: =曲げ耐力!H56 -> 27.28950404 | F56: =曲げ耐力!I56 -> 94.86057399 | G56: =F56/(曲げ耐力!$C$4/100*(曲げ耐力!$C$3/100)^2*曲げ耐力!$C$6*曲げ耐力!$C$5*1000) -> 0.08955609745 | H56: =E56/曲げ耐力!$C$3 -> 0.9096501346 | J56: 128.2177227 | K56: 1834.152571 | L56: 19.24796706 | M56: 0 | N56: 1834.152571 | O56: 999
B57: =曲げ耐力!E57 -> 2650 | C57: =曲げ耐力!F57 -> 0.7505446623 | D57: =曲げ耐力!G57 -> - | E57: =曲げ耐力!H57 -> 27.81430219 | F57: =曲げ耐力!I57 -> 90.89990841 | G57: =F57/(曲げ耐力!$C$4/100*(曲げ耐力!$C$3/100)^2*曲げ耐力!$C$6*曲げ耐力!$C$5*1000) -> 0.08581690699 | H57: =E57/曲げ耐力!$C$3 -> 0.9271434064 | J57: 127.8062604 | K57: 1869.425121 | L57: 19.61818219 | M57: 0 | N57: 1869.425121 | O57: 999
B58: =曲げ耐力!E58 -> 2700 | C58: =曲げ耐力!F58 -> 0.7647058824 | D58: =曲げ耐力!G58 -> - | E58: =曲げ耐力!H58 -> 28.33910035 | F58: =曲げ耐力!I58 -> 86.72094443 | G58: =F58/(曲げ耐力!$C$4/100*(曲げ耐力!$C$3/100)^2*曲げ耐力!$C$6*曲げ耐力!$C$5*1000) -> 0.0818716251 | H58: =E58/曲げ耐力!$C$3 -> 0.9446366782 | J58: 127.2848331 | K58: 1904.69767 | L58: 19.98839733 | M58: 0 | N58: 1904.69767 | O58: 999
B59: =曲げ耐力!E59 -> 2750 | C59: =曲げ耐力!F59 -> 0.7788671024 | D59: =曲げ耐力!G59 -> - | E59: =曲げ耐力!H59 -> 28.8638985 | F59: =曲げ耐力!I59 -> 82.32368207 | G59: =F59/(曲げ耐力!$C$4/100*(曲げ耐力!$C$3/100)^2*曲げ耐力!$C$6*曲げ耐力!$C$5*1000) -> 0.07772025177 | H59: =E59/曲げ耐力!$C$3 -> 0.96212995 | J59: 126.6540877 | K59: 1939.970219 | L59: 20.35875551 | M59: 0 | N59: 1939.970219 | O59: 999
B60: =曲げ耐力!E60 -> 2800 | C60: =曲げ耐力!F60 -> 0.7930283224 | D60: =曲げ耐力!G60 -> - | E60: =曲げ耐力!H60 -> 29.38869666 | F60: =曲げ耐力!I60 -> 77.70812131 | G60: =F60/(曲げ耐力!$C$4/100*(曲げ耐力!$C$3/100)^2*曲げ耐力!$C$6*曲げ耐力!$C$5*1000) -> 0.073362787 | H60: =E60/曲げ耐力!$C$3 -> 0.9796232218 | J60: 125.9165442 | K60: 1975.242768 | L60: 20.7291137 | M60: 0 | N60: 1975.242768 | O60: 999
B61: =曲げ耐力!E61 -> 2850 | C61: =曲げ耐力!F61 -> 0.8071895425 | D61: =曲げ耐力!G61 -> - | E61: =曲げ耐力!H61 -> 29.91349481 | F61: =曲げ耐力!I61 -> 72.87426216 | G61: =F61/(曲げ耐力!$C$4/100*(曲げ耐力!$C$3/100)^2*曲げ耐力!$C$6*曲げ耐力!$C$5*1000) -> 0.0687992308 | H61: =E61/曲げ耐力!$C$3 -> 0.9971164937 | J61: 125.0687924 | K61: 2010.515317 | L61: 21.09932883 | M61: 0 | N61: 2010.515317 | O61: 999
B62: =曲げ耐力!E62 -> 2900 | C62: =曲げ耐力!F62 -> 0.8213507625 | D62: =曲げ耐力!G62 -> - | E62: =曲げ耐力!H62 -> 30.45272383 | F62: =曲げ耐力!I62 -> 67.88841283 | G62: =F62/(曲げ耐力!$C$4/100*(曲げ耐力!$C$3/100)^2*曲げ耐力!$C$6*曲げ耐力!$C$5*1000) -> 0.0640921835 | H62: =E62/曲げ耐力!$C$3 -> 1.015090794 | J62: 124.1134336 | K62: 2045.787866 | L62: 21.46954397 | M62: 0 | N62: 2045.787866 | O62: 999
B63: =曲げ耐力!E63 -> 2950 | C63: =曲げ耐力!F63 -> 0.8355119826 | D63: =曲げ耐力!G63 -> - | E63: =曲げ耐力!H63 -> 31.03648976 | F63: =曲げ耐力!I63 -> 62.87037267 | G63: =F63/(曲げ耐力!$C$4/100*(曲げ耐力!$C$3/100)^2*曲げ耐力!$C$6*曲げ耐力!$C$5*1000) -> 0.05935474544 | H63: =E63/曲げ耐力!$C$3 -> 1.034549659 | J63: 123.0488212 | K63: 2081.060415 | L63: 21.83990216 | M63: 0 | N63: 2081.060415 | O63: 999
B64: =曲げ耐力!E64 -> 3000 | C64: =曲げ耐力!F64 -> 0.8496732026 | D64: =曲げ耐力!G64 -> - | E64: =曲げ耐力!H64 -> 31.67305793 | F64: =曲げ耐力!I64 -> 57.81961477 | G64: =F64/(曲げ耐力!$C$4/100*(曲げ耐力!$C$3/100)^2*曲げ耐力!$C$6*曲げ耐力!$C$5*1000) -> 0.05458641917 | H64: =E64/曲げ耐力!$C$3 -> 1.055768598 | J64: 121.8744896 | K64: 2116.332964 | L64: 22.21011729 | M64: 0 | N64: 2116.332964 | O64: 999
B65: =曲げ耐力!E65 -> 3050 | C65: =曲げ耐力!F65 -> 0.8638344227 | D65: =曲げ耐力!G65 -> - | E65: =曲げ耐力!H65 -> 32.37252083 | F65: =曲げ耐力!I65 -> 52.73322314 | G65: =F65/(曲げ耐力!$C$4/100*(曲げ耐力!$C$3/100)^2*曲げ耐力!$C$6*曲げ耐力!$C$5*1000) -> 0.04978445177 | H65: =E65/曲げ耐力!$C$3 -> 1.079084028 | J65: 120.5941329 | K65: 2151.605513 | L65: 22.58033243 | M65: 0 | N65: 2151.605513 | O65: 999
B66: =曲げ耐力!E66 -> 3100 | C66: =曲げ耐力!F66 -> 0.8779956427 | D66: =曲げ耐力!G66 -> - | E66: =曲げ耐力!H66 -> 33.14795314 | F66: =曲げ耐力!I66 -> 47.6067967 | G66: =F66/(曲げ耐力!$C$4/100*(曲げ耐力!$C$3/100)^2*曲げ耐力!$C$6*曲げ耐力!$C$5*1000) -> 0.04494468825 | H66: =E66/曲げ耐力!$C$3 -> 1.104931771 | J66: 119.2031606 | K66: 2186.878062 | L66: 22.95054756 | M66: 0 | N66: 2186.878062 | O66: 999
B67: =曲げ耐力!E67 -> 3150 | C67: =曲げ耐力!F67 -> 0.8921568627 | D67: =曲げ耐力!G67 -> - | E67: =曲げ耐力!H67 -> 34.01720145 | F67: =曲げ耐力!I67 -> 42.43570174 | G67: =F67/(曲げ耐力!$C$4/100*(曲げ耐力!$C$3/100)^2*曲げ耐力!$C$6*曲げ耐力!$C$5*1000) -> 0.040062754 | H67: =E67/曲げ耐力!$C$3 -> 1.133906715 | J67: 117.7038671 | K67: 2222.150611 | L67: 23.32090575 | M67: 0 | N67: 2222.150611 | O67: 999
B68: =曲げ耐力!E68 -> 3200 | C68: =曲げ耐力!F68 -> 0.9063180828 | D68: =曲げ耐力!G68 -> - | E68: =曲げ耐力!H68 -> 35.00512856 | F68: =曲げ耐力!I68 -> 37.21353503 | G68: =F68/(曲げ耐力!$C$4/100*(曲げ耐力!$C$3/100)^2*曲げ耐力!$C$6*曲げ耐力!$C$5*1000) -> 0.03513260388 | H68: =E68/曲げ耐力!$C$3 -> 1.166837619 | J68: 116.0966812 | K68: 2257.42316 | L68: 23.69112088 | M68: 0 | N68: 2257.42316 | O68: 999
B69: =曲げ耐力!E69 -> 3250 | C69: =曲げ耐力!F69 -> 0.9204793028 | D69: =曲げ耐力!G69 -> - | E69: =曲げ耐力!H69 -> 36.14815848 | F69: =曲げ耐力!I69 -> 31.93208428 | G69: =F69/(曲げ耐力!$C$4/100*(曲げ耐力!$C$3/100)^2*曲げ耐力!$C$6*曲げ耐力!$C$5*1000) -> 0.03014648479 | H69: =E69/曲げ耐力!$C$3 -> 1.204938616 | J69: 114.3797509 | K69: 2292.695709 | L69: 24.06133602 | M69: 0 | N69: 2292.695709 | O69: 999
B70: =曲げ耐力!E70 -> 3300 | C70: =曲げ耐力!F70 -> 0.9346405229 | D70: =曲げ耐力!G70 -> - | E70: =曲げ耐力!H70 -> 37.50291744 | F70: =曲げ耐力!I70 -> 26.58052731 | G70: =F70/(曲げ耐力!$C$4/100*(曲げ耐力!$C$3/100)^2*曲げ耐力!$C$6*曲げ耐力!$C$5*1000) -> 0.02509417974 | H70: =E70/曲げ耐力!$C$3 -> 1.250097248 | J70: 112.5558107 | K70: 2327.968258 | L70: 24.43169421 | M70: 0 | N70: 2327.968258 | O70: 999
B71: =曲げ耐力!E71 -> 3350 | C71: =曲げ耐力!F71 -> 0.9488017429 | D71: =曲げ耐力!G71 -> - | E71: =曲げ耐力!H71 -> 39.164757 | F71: =曲げ耐力!I71 -> 21.14320997 | G71: =F71/(曲げ耐力!$C$4/100*(曲げ耐力!$C$3/100)^2*曲げ耐力!$C$6*曲げ耐力!$C$5*1000) -> 0.01996090992 | H71: =E71/曲げ耐力!$C$3 -> 1.3054919 | J71: 110.6215093 | K71: 2363.240807 | L71: 24.80190934 | M71: 0 | N71: 2363.240807 | O71: 999
B72: =曲げ耐力!E72 -> 3400 | C72: =曲げ耐力!F72 -> 0.962962963 | D72: =曲げ耐力!G72 -> - | E72: =曲げ耐力!H72 -> 41.31532827 | F72: =曲げ耐力!I72 -> 15.59662825 | G72: =F72/(曲げ耐力!$C$4/100*(曲げ耐力!$C$3/100)^2*曲げ耐力!$C$6*曲げ耐力!$C$5*1000) -> 0.01472448564 | H72: =E72/曲げ耐力!$C$3 -> 1.377177609 | J72: 108.5787527 | K72: 2398.513356 | L72: 25.17212448 | M72: 0 | N72: 2398.513356 | O72: 999
B73: =曲げ耐力!E73 -> 3450 | C73: =曲げ耐力!F73 -> 0.977124183 | D73: =曲げ耐力!G73 -> - | E73: =曲げ耐力!H73 -> 44.37851324 | F73: =曲げ耐力!I73 -> 9.89832835 | G73: =F73/(曲げ耐力!$C$4/100*(曲げ耐力!$C$3/100)^2*曲げ耐力!$C$6*曲げ耐力!$C$5*1000) -> 0.009344827055 | H73: =E73/曲げ耐力!$C$3 -> 1.479283775 | J73: 106.4294802 | K73: 2433.785906 | L73: 25.54248266 | M73: 0 | N73: 2433.785906 | O73: 999
B74: =曲げ耐力!E74 -> 3500 | C74: =曲げ耐力!F74 -> 0.9912854031 | D74: =曲げ耐力!G74 -> - | E74: =曲げ耐力!H74 -> 49.91275649 | F74: =曲げ耐力!I74 -> 3.953263942 | G74: =F74/(曲げ耐力!$C$4/100*(曲げ耐力!$C$3/100)^2*曲げ耐力!$C$6*曲げ耐力!$C$5*1000) -> 0.003732202705 | H74: =E74/曲げ耐力!$C$3 -> 1.66375855 | J74: 104.1689681 | K74: 2469.058455 | L74: 25.9126978 | M74: 0 | N74: 2469.058455 | O74: 999
B75: =曲げ耐力!E75 -> 3530.769231 | C75: =曲げ耐力!F75 -> 1 | D75: =曲げ耐力!G75 -> - | E75: =曲げ耐力!H75 -> 69.50741542 | F75: =曲げ耐力!I75 -> -9.25573911e-05 | G75: =F75/(曲げ耐力!$C$4/100*(曲げ耐力!$C$3/100)^2*曲げ耐力!$C$6*曲げ耐力!$C$5*1000) -> -8.738170547e-08 | H75: =E75/曲げ耐力!$C$3 -> 2.316913847 | J75: 101.8007182 | K75: 2504.331004 | L75: 26.28291294 | M75: 0 | N75: 2504.331004 | O75: 999
J76: 99.32427571 | K76: 2539.603553 | L76: 26.65312807 | M76: 0 | N76: 2539.603553 | O76: 999
J77: 96.73809027 | K77: 2574.876102 | L77: 27.02334321 | M77: 0 | N77: 2574.876102 | O77: 999
J78: 94.04500287 | K78: 2610.148651 | L78: 27.39370139 | M78: 0 | N78: 2610.148651 | O78: 999
J79: 91.24179642 | K79: 2645.4212 | L79: 27.76391653 | M79: 0 | N79: 2645.4212 | O79: 999
J80: 88.33045883 | K80: 2680.693749 | L80: 28.13413166 | M80: 0 | N80: 2680.693749 | O80: 999
J81: 85.31161237 | K81: 2715.966298 | L81: 28.50448985 | M81: 0 | N81: 2715.966298 | O81: 999
J82: 82.18212445 | K82: 2751.238847 | L82: 28.87477651 | M82: 0 | N82: 2751.238847 | O82: 999
J83: 78.94534565 | K83: 2786.511396 | L83: 29.24499165 | M83: 0 | N83: 2786.511396 | O83: 999
J84: 75.59958941 | K84: 2821.783945 | L84: 29.61520678 | M84: 0 | N84: 2821.783945 | O84: 999
J85: 72.14425887 | K85: 2857.056494 | L85: 29.98542192 | M85: 0 | N85: 2857.056494 | O85: 999
J86: 68.62565568 | K86: 2892.329043 | L86: 30.3650784 | M86: 0 | N86: 2892.329043 | O86: 999
J87: 65.09403255 | K87: 2927.601592 | L87: 30.76676468 | M87: 0 | N87: 2927.601592 | O87: 999
J88: 61.54654933 | K88: 2962.874142 | L88: 31.19276958 | M88: 0 | N88: 2962.874142 | O88: 999
J89: 57.98212948 | K89: 2998.146691 | L89: 31.6462402 | M89: 0 | N89: 2998.146691 | O89: 999
J90: 54.39995917 | K90: 3033.41924 | L90: 32.13060977 | M90: 0 | N90: 3033.41924 | O90: 999
J91: 50.79804785 | K91: 3068.691789 | L91: 32.65016981 | M91: 0 | N91: 3068.691789 | O91: 999
J92: 47.17582325 | K92: 3103.964338 | L92: 33.21064234 | M92: 0 | N92: 3103.964338 | O92: 999
J93: 43.53257815 | K93: 3139.236887 | L93: 33.81860769 | M93: 0 | N93: 3139.236887 | O93: 999
J94: 39.86264992 | K94: 3174.509436 | L94: 34.4820767 | M94: 0 | N94: 3174.509436 | O94: 999
J95: 36.16718151 | K95: 3209.781985 | L95: 35.21249342 | M95: 0 | N95: 3209.781985 | O95: 999
J96: 32.44063054 | K96: 3245.054534 | L96: 36.02416293 | M96: 0 | N96: 3245.054534 | O96: 999
J97: 28.67965157 | K97: 3280.327083 | L97: 36.93682621 | M97: 0 | N97: 3280.327083 | O97: 999
J98: 24.88005285 | K98: 3315.599632 | L98: 37.97937949 | M98: 0 | N98: 3315.599632 | O98: 999
J99: 21.03517322 | K99: 3350.872181 | L99: 39.19445189 | M99: 0 | N99: 3350.872181 | O99: 999
J100: 17.13512736 | K100: 3386.14473 | L100: 40.65042162 | M100: 0 | N100: 3386.14473 | O100: 999
J101: 13.16834057 | K101: 3421.417279 | L101: 42.46974004 | M101: 0 | N101: 3421.417279 | O101: 999
J102: 9.112429404 | K102: 3456.689828 | L102: 44.90503466 | M102: 0 | N102: 3456.689828 | O102: 999
J103: 4.927904447 | K103: 3491.962378 | L103: 48.65811206 | M103: 0 | N103: 3491.962378 | O103: 999
J104: 0.4851876291 | K104: 3527.234927 | L104: 59.07892426 | M104: 0 | N104: 3527.234927 | O104: 999
